fUSD/lending_fUSD_20250506
["ID","MTS","AMOUNT","RATE_DAILY","PERIOD"]
[360073325,1746537051531,-450.0,0.0001989,2]
[360073326,1746537051541,-450.0,0.0001989,2]
[360073327,1746537051550,-450.0,0.0001989,2]
[360073328,1746537051560,-450.0,0.0001989,2]
[360073329,1746537051569,-450.0,0.0001989,2]
[360073330,1746537051578,-450.0,0.0001989,2]
[360073331,1746537051587,-450.0,0.0001989,2]
[360073332,1746537051597,-450.0,0.0001989,2]
[360073333,1746537051606,-450.0,0.0001989,2]
[360073334,1746537051615,-229.88324052,0.0001989,2]
[360073335,1746537051624,-450.0,0.0001989,2]
[360073336,1746537051634,-450.0,0.0001989,2]
[360073337,1746537051643,-450.0,0.0001989,2]
[360073338,1746537051653,-450.0,0.0001989,2]
[360073339,1746537051663,-514.93,0.0001989,2]
[360073340,1746537051672,-450.0,0.0001989,2]
[360073341,1746537051682,-412.76,0.0001989,2]
[360073342,1746537051691,-450.0,0.0001989,2]
[360073343,1746537051700,-450.0,0.0001989,2]
[360073344,1746537051710,-450.0,0.0001989,2]
[360073345,1746537051720,-450.0,0.0001989,2]
[360073346,1746537051845,-450.0,0.0001989,2]
[360073347,1746537051855,-450.0,0.0001989,2]
[360073348,1746537051865,-450.0,0.0001989,2]
[360073349,1746537051875,-450.0,0.0001989,2]
[360073350,1746537051884,-450.0,0.0001989,2]
[360073351,1746537051894,-450.0,0.0001989,2]
[360073352,1746537051903,-500.0,0.0001989,2]
[360073353,1746537051920,-450.0,0.0001989,2]
[360073354,1746537051929,-450.0,0.0001989,2]
[360073355,1746537051939,-450.0,0.0001989,2]
[360073356,1746537051948,-351.81343855,0.0001989,2]
[360073357,1746537051958,-12500.0,0.00019891,2]
[360073358,1746537051967,-2936.157,0.00019896,2]
[360073359,1746537051976,-219.995,0.00019896,2]
[360073360,1746537051986,-450.0,0.00019897,2]
[360073361,1746537051996,-450.0,0.00019897,2]
[360073362,1746537052006,-450.0,0.00019897,2]
[360073363,1746537052016,-450.0,0.00019897,2]
[360073364,1746537052026,-450.0,0.00019897,2]
[360073365,1746537052036,-151.0,0.00019897,2]
[360073366,1746537052045,-151.0,0.00019897,2]
[360073367,1746537052055,-450.0,0.00019898,2]
[360073368,1746537052064,-450.0,0.00019898,2]
[360073369,1746537052074,-450.0,0.00019898,2]
[360073370,1746537052083,-450.0,0.00019898,2]
[360073371,1746537052092,-450.0,0.00019898,2]
[360073372,1746537052103,-450.0,0.00019898,2]
[360073373,1746537052112,-450.0,0.00019898,2]
[360073374,1746537052122,-450.0,0.00019898,2]
[360073375,1746537052132,-450.0,0.00019898,2]
[360073376,1746537052143,-450.0,0.00019898,2]
[360073377,1746537052155,-450.0,0.00019898,2]
[360073378,1746537052164,-450.0,0.00019898,2]
[360073379,1746537052174,-450.0,0.00019898,2]
[360073380,1746537052183,-490.87,0.00019898,2]
[360073381,1746537052192,-450.0,0.00019898,2]
[360073382,1746537052201,-450.0,0.00019898,2]
[360073383,1746537052211,-450.0,0.00019898,2]
[360073384,1746537052220,-450.0,0.00019898,2]
[360073385,1746537052229,-450.0,0.00019898,2]
[360073386,1746537052239,-450.0,0.00019898,2]
[360073387,1746537052248,-450.0,0.00019898,2]
[360073388,1746537052258,-450.0,0.00019898,2]
[360073389,1746537052267,-450.0,0.00019898,2]
[360073390,1746537052277,-764.89,0.00019898,2]
[360073391,1746537052286,-450.0,0.00019898,2]
[360073392,1746537052296,-450.0,0.00019898,2]
[360073393,1746537052305,-450.0,0.00019898,2]
[360073394,1746537052314,-450.0,0.00019898,2]
[360073395,1746537052323,-661.28,0.00019898,2]
[360073396,1746537052333,-522.24,0.00019898,2]
[360073397,1746537052343,-450.0,0.00019898,2]
[360073398,1746537052352,-450.0,0.00019898,2]
[360073399,1746537052362,-450.0,0.00019898,2]
[360073400,1746537052371,-450.0,0.00019898,2]
[360073401,1746537052381,-278.34,0.00019898,2]
[360073402,1746537052390,-7541.5,0.00019898,2]
[360073403,1746537052399,-450.0,0.00019898,2]
[360073404,1746537052408,-450.0,0.00019898,2]
[360073405,1746537052417,-489.49,0.00019898,2]
[360073406,1746537052427,-470.0,0.00019898,2]
[360073407,1746537052436,-1668.53,0.00019898,2]
[360073408,1746537052445,-450.0,0.00019898,2]
[360073409,1746537052455,-450.0,0.00019898,2]
[360073410,1746537052464,-500.0,0.00019898,2]
[360073411,1746537052474,-450.0,0.00019898,2]
[360073412,1746537052483,-705.89,0.00019898,2]
[360073413,1746537052492,-1608.56,0.00019898,2]
[360073414,1746537052501,-193.05489519,0.00019899,2]
[360073415,1746537052510,-156.34320295,0.00019899,2]
[360073416,1746537052520,-503.70148751,0.00019899,2]
[360073417,1746537052529,-500.0,0.00019899,2]
[360073418,1746537052539,-450.0,0.00019899,2]
[360073419,1746537052549,-450.0,0.00019899,2]
[360073420,1746537052559,-450.0,0.00019899,2]
[360073421,1746537052569,-450.0,0.00019899,2]
[360073422,1746537052578,-450.0,0.00019899,2]
[360073423,1746537052587,-450.0,0.00019899,2]
[360073424,1746537052596,-450.0,0.00019899,2]
[360073425,1746537052606,-450.0,0.00019899,2]
[360073426,1746537052615,-450.0,0.00019899,2]
[360073427,1746537052624,-450.0,0.00019899,2]
[360073428,1746537052634,-450.0,0.00019899,2]
[360073429,1746537052643,-450.0,0.00019899,2]
[360073430,1746537052652,-450.0,0.00019899,2]
[360073431,1746537052661,-450.0,0.00019899,2]
[360073432,1746537052671,-450.0,0.00019899,2]
[360073433,1746537052680,-450.0,0.00019899,2]
[360073434,1746537052689,-450.0,0.00019899,2]
[360073435,1746537052699,-450.0,0.00019899,2]
[360073436,1746537052709,-450.0,0.00019899,2]
[360073437,1746537052720,-450.0,0.00019899,2]
[360073438,1746537052729,-450.0,0.00019899,2]
[360073439,1746537052738,-450.0,0.00019899,2]
[360073440,1746537052747,-450.0,0.00019899,2]
[360073441,1746537052758,-450.0,0.00019899,2]
[360073442,1746537052767,-450.0,0.00019899,2]
[360073443,1746537052776,-450.0,0.00019899,2]
[360073444,1746537052786,-450.0,0.00019899,2]
[360073445,1746537052796,-450.0,0.00019899,2]
[360073446,1746537052806,-514.93,0.00019899,2]
[360073447,1746537052816,-514.93,0.00019899,2]
[360073448,1746537052825,-450.0,0.00019899,2]
[360073449,1746537052835,-450.0,0.00019899,2]
[360073450,1746537052844,-450.0,0.00019899,2]
[360073451,1746537052854,-409.80050933,0.00019899,2]
[360073452,1746537052863,-450.0,0.00019899,2]
[360073453,1746537052873,-450.0,0.00019899,2]
[360073454,1746537052883,-450.0,0.00019899,2]
[360073455,1746537052892,-450.0,0.00019899,2]
[360073456,1746537052902,-450.0,0.00019899,2]
[360073457,1746537052912,-450.0,0.00019899,2]
[360073458,1746537052921,-450.0,0.00019899,2]
[360073459,1746537052931,-450.0,0.00019899,2]
[360073460,1746537052940,-450.0,0.00019899,2]
[360073461,1746537052949,-405.01563443,0.00019899,2]
[360073462,1746537052959,-591.52,0.00019899,2]
[360073463,1746537052969,-450.0,0.00019899,2]
[360073464,1746537052979,-450.0,0.00019899,2]
[360073465,1746537052988,-450.0,0.00019899,2]
[360073466,1746537052997,-450.0,0.00019899,2]
[360073467,1746537053008,-407.5798515,0.00019899,2]
[360073468,1746537053018,-526.36,0.00019899,2]
[360073469,1746537053027,-500.0,0.00019899,2]
[360073470,1746537053037,-450.0,0.00019899,2]
[360073471,1746537053046,-450.0,0.00019899,2]
[360073472,1746537053056,-157.715481,0.00019899,2]
[360073473,1746537053066,-450.0,0.00019899,2]
[360073474,1746537053075,-450.0,0.00019899,2]
[360073475,1746537053084,-151.0,0.00019899,2]
[360073476,1746537053094,-450.0,0.00019899,2]
[360073477,1746537053103,-450.0,0.00019899,2]
[360073478,1746537053112,-450.0,0.00019899,2]
[360073479,1746537053122,-450.0,0.00019899,2]
[360073480,1746537053131,-280.23,0.00019899,2]
[360073481,1746537053141,-450.0,0.00019899,2]
[360073482,1746537053150,-327.44942935,0.00019899,2]
[360073483,1746537053160,-572.63,0.00019899,2]
[360073484,1746537053173,-947.09,0.00019899,2]
[360073485,1746537053182,-21611.48,0.00019899,2]
[360073486,1746537053192,-853.0,0.000199,2]
[360073487,1746537053201,-151.0,0.000199,2]
[360073488,1746537053211,-151.0,0.000199,2]
[360073489,1746537053220,-151.0,0.000199,2]
[360073490,1746537053230,-151.0,0.000199,2]
[360073491,1746537053239,-151.0,0.000199,2]
[360073492,1746537053250,-5306.28,0.000199,2]
[360073493,1746537053260,-12500.0,0.000199,2]
[360073494,1746537053270,-1201.09,0.000199,2]
[360073495,1746537053279,-358.24356023,0.000199,2]
[360073496,1746537053289,-1154.63,0.000199,2]
[360073497,1746537053298,-352.26,0.000199,2]
[360073498,1746537053307,-150.0,0.000199,2]
[360073499,1746537053316,-324.52,0.000199,2]
[360073500,1746537053326,-451.85,0.000199,2]
[360073501,1746537053336,-150.0,0.000199,2]
[360073502,1746537053345,-295.02,0.000199,2]
[360073503,1746537053354,-162.33,0.000199,2]
[360073504,1746537053363,-150.0,0.000199,2]
[360073505,1746537053373,-220.0651245,0.000199,2]
[360073506,1746537053382,-451.85,0.000199,2]
[360073507,1746537053391,-1154.63,0.000199,2]
[360073508,1746537053400,-1154.63,0.000199,2]
[360073509,1746537053409,-150.0,0.000199,2]
[360073510,1746537053419,-704.52,0.000199,2]
[360073511,1746537053428,-300.0,0.000199,2]
[360073512,1746537053438,-451.85,0.000199,2]
[360073513,1746537053447,-1154.63,0.000199,2]
[360073514,1746537053457,-150.0,0.000199,2]
[360073515,1746537053466,-300.0,0.000199,2]
[360073516,1746537053475,-352.26,0.000199,2]
[360073517,1746537053484,-582.42522966,0.000199,2]
[360073518,1746537053493,-8243.2655154,0.000199,2]
[360073519,1746537053502,-903.5,0.000199,2]
[360073520,1746537053511,-352.26,0.000199,2]
[360073521,1746537053521,-1154.63,0.000199,2]
[360073522,1746537053530,-150.0,0.000199,2]
[360073523,1746537053539,-301.0,0.000199,2]
[360073524,1746537053549,-186.443593,0.000199,2]
[360073525,1746537053557,-186.443593,0.000199,2]
[360073526,1746537053566,-151.0,0.000199,2]
[360073527,1746537053576,-271.780278,0.000199,2]
[360073528,1746537053585,-157.535877,0.000199,2]
[360073529,1746537053594,-536.74955093,0.000199,2]
[360073530,1746537053603,-271.780278,0.000199,2]
[360073531,1746537053612,-451.85,0.000199,2]
[360073532,1746537053622,-704.37,0.000199,2]
[360073533,1746537053632,-150.0,0.000199,2]
[360073534,1746537053641,-12500.0,0.000199,2]
[360073535,1746537053650,-151.0,0.000199,2]
[360073536,1746537053659,-352.26,0.000199,2]
[360073537,1746537053668,-162.3,0.000199,2]
[360073538,1746537053676,-456.46,0.000199,2]
[360073539,1746537053686,-82120.35290884,0.000199,2]
[360073540,1746537053695,-420.44620447,0.000199,3]
[360073541,1746537053703,-8572.88004735,0.000199,2]
[360073542,1746537053713,-166.3091093,0.000199,2]
[360073543,1746537053722,-352.26,0.000199,2]
[360073544,1746537053731,-151.0,0.000199,2]
[360073545,1746537053740,-151.0,0.000199,2]
[360073546,1746537053750,-150.0,0.00019918,7]
[360073547,1746537053759,-817.0,0.00019929,2]
[360073548,1746537053768,-1452.0,0.00019929,2]
[360073549,1746537053778,-1243.0,0.00019929,2]
[360073550,1746537053787,-1053.355,0.00019929,2]
[360073551,1746537053797,-663.05,0.00019929,2]
[360073552,1746537053806,-551.0,0.00019929,2]
[360073553,1746537053815,-5933.0,0.00019929,2]
[360073554,1746537053824,-6764.0,0.00019929,2]
[360073555,1746537053834,-879.0,0.00019929,2]
[360073556,1746537053844,-183.325,0.00019929,2]
[360073557,1746537053854,-275.675,0.00019929,2]
[360073558,1746537053864,-4015.0,0.00019929,2]
[360073559,1746537053873,-878.0,0.00019929,2]
[360073560,1746537053882,-300.0,0.00019973,2]
[360073561,1746537053891,-163.01,0.00019975,2]
[360073562,1746537053901,-214.652,0.00019975,2]
[360073563,1746537053910,-253.434,0.00019975,2]
[360073564,1746537053919,-182.758,0.00019975,2]
[360073565,1746537053929,-260.1,0.00019975,2]
[360073566,1746537053939,-203.026,0.00019975,2]
[360073567,1746537053947,-1432.157,0.00019975,2]
[360073568,1746537053956,-928.145,0.00019975,2]
[360073569,1746537053966,-450.0,0.00019982,2]
[360073570,1746537053975,-450.0,0.00019982,2]
[360073571,1746537053986,-490.87,0.00019983,2]
[360073572,1746537053995,-393.46354073,0.00019983,2]
[360073573,1746537054005,-764.89,0.00019983,2]
[360073574,1746537054015,-450.0,0.00019983,2]
[360073575,1746537054025,-450.0,0.00019983,2]
[360073576,1746537054035,-450.0,0.00019983,2]
[360073577,1746537054045,-450.0,0.00019983,2]
[360073578,1746537054056,-705.89,0.00019983,2]
[360073579,1746537054065,-450.0,0.00019984,2]
[360073580,1746537054075,-450.0,0.00019984,2]
[360073581,1746537054085,-450.0,0.00019984,2]
[360073582,1746537054094,-450.0,0.00019984,2]
[360073583,1746537054105,-472.55186321,0.00019984,2]
[360073584,1746537054115,-450.0,0.00019984,2]
[360073585,1746537054125,-450.0,0.00019984,2]
[360073586,1746537054134,-450.0,0.00019984,2]
[360073587,1746537054143,-595.14,0.00019984,2]
[360073588,1746537054153,-364.65434742,0.00019984,2]
[360073589,1746537054162,-494.97206428,0.00019984,2]
[360073590,1746537054171,-450.0,0.00019984,2]
[360073591,1746537054184,-450.0,0.00019984,2]
[360073592,1746537054291,-450.0,0.00019984,2]
[360073593,1746537054314,-450.0,0.00019984,2]
[360073594,1746537054324,-450.0,0.00019984,2]
[360073595,1746537054334,-450.0,0.00019984,2]
[360073596,1746537054344,-450.0,0.00019984,2]
[360073597,1746537054354,-450.0,0.00019984,2]
[360073598,1746537054364,-661.28,0.00019984,2]
[360073599,1746537054373,-450.0,0.00019984,2]
[360073600,1746537054383,-450.0,0.00019984,2]
[360073601,1746537054392,-7541.5,0.00019984,2]
[360073602,1746537054402,-551.47756717,0.00019984,2]
[360073603,1746537054411,-489.49,0.00019984,2]
[360073604,1746537054421,-1668.53,0.00019984,2]
[360073605,1746537054431,-450.0,0.00019984,2]
[360073606,1746537054440,-500.0,0.00019984,2]
[360073607,1746537054450,-450.0,0.00019984,2]
[360073608,1746537054459,-1608.56,0.00019984,2]
[360073609,1746537054469,-152.678386,0.00019985,2]
[360073610,1746537054479,-151.0,0.00019985,2]
[360073611,1746537054488,-2000.0,0.00019985,2]
[360073612,1746537054497,-200.0,0.00019985,2]
[360073613,1746537054508,-450.0,0.00019985,2]
[360073614,1746537054518,-450.0,0.00019985,2]
[360073615,1746537054527,-450.0,0.00019985,2]
[360073616,1746537054537,-450.0,0.00019985,2]
[360073617,1746537054546,-450.0,0.00019985,2]
[360073618,1746537054555,-450.0,0.00019985,2]
[360073619,1746537054565,-450.0,0.00019985,2]
[360073620,1746537054575,-354.37711854,0.00019985,2]
[360073621,1746537054584,-450.0,0.00019985,2]
[360073622,1746537054594,-402.95763581,0.00019985,2]
[360073623,1746537054603,-450.0,0.00019985,2]
[360073624,1746537054612,-514.93,0.00019985,2]
[360073625,1746537054622,-317.57435067,0.00019985,2]
[360073626,1746537054631,-151.0,0.00019985,2]
[360073627,1746537054640,-450.0,0.00019985,2]
[360073628,1746537054650,-450.0,0.00019985,2]
[360073629,1746537054660,-450.0,0.00019985,2]
[360073630,1746537054669,-3714.95872135,0.00019985,2]
[360073631,1746537054679,-436.54592673,0.00019985,2]
[360073632,1746537054688,-500.0,0.00019985,2]
[360073633,1746537054698,-450.0,0.00019985,2]
[360073634,1746537054708,-2067.6097647,0.00019985,2]
[360073635,1746537054717,-450.0,0.00019985,2]
[360073636,1746537054727,-582.61,0.00019985,2]
[360073637,1746537054737,-450.0,0.00019985,2]
[360073638,1746537054746,-450.0,0.00019985,2]
[360073639,1746537054757,-450.0,0.00019985,2]
[360073640,1746537054766,-450.0,0.00019985,2]
[360073641,1746537054776,-514.0,0.00019985,2]
[360073642,1746537054785,-475.4197839,0.00019985,2]
[360073643,1746537054795,-947.09,0.00019985,2]
[360073644,1746537054805,-19498.1081123,0.00019985,2]
[360073645,1746537054814,-151.0,0.00019986,2]
[360073646,1746537054824,-151.0,0.00019986,2]
[360073647,1746537054834,-151.0,0.00019986,2]
[360073648,1746537054844,-151.0,0.00019986,2]
[360073649,1746537054853,-151.0,0.00019986,2]
[360073650,1746537054863,-151.0,0.00019986,2]
[360073651,1746537054872,-151.0,0.00019986,2]
[360073652,1746537054881,-296.321459,0.00019986,2]
[360073653,1746537054891,-151.0,0.00019986,2]
[360073654,1746537054900,-151.0,0.00019986,2]
[360073655,1746537054910,-249.573929,0.00019986,2]
[360073656,1746537054919,-249.573929,0.00019986,2]
[360073657,1746537054929,-151.0,0.00019986,2]
[360073658,1746537054939,-151.0,0.00019986,2]
[360073659,1746537054948,-151.0,0.00019986,2]
[360073660,1746537054959,-210.162848,0.00019986,2]
[360073661,1746537054968,-151.0,0.00019986,2]
[360073662,1746537054978,-151.0,0.00019986,2]
[360073663,1746537054987,-151.0,0.00019986,2]
[360073664,1746537054997,-151.0,0.00019986,2]
[360073665,1746537055007,-154.684887,0.00019986,2]
[360073666,1746537055017,-151.0,0.00019986,2]
[360073667,1746537055026,-151.0,0.00019986,2]
[360073668,1746537055037,-151.0,0.00019986,2]
[360073669,1746537055047,-2026.7292674,0.00019986,2]
[360073670,1746537055057,-1985.8487702,0.00019986,2]
[360073671,1746537055066,-1944.9682729,0.00019986,2]
[360073672,1746537055076,-1904.0877757,0.00019986,2]
[360073673,1746537055086,-1863.2072784,0.00019986,2]
[360073674,1746537055095,-170.898745,0.00019986,2]
[360073675,1746537055104,-466.6059745,0.00019986,2]
[360073676,1746537055113,-457.792165,0.00019986,2]
[360073677,1746537055123,-448.9783555,0.00019986,2]
[360073678,1746537055132,-440.1645461,0.00019986,2]
[360073679,1746537055141,-431.3507366,0.00019986,2]
[360073680,1746537055152,-19136.6326005,0.00019986,2]
[360073681,1746537055161,-18775.1570886,0.00019986,2]
[360073682,1746537055171,-18413.6815768,0.00019986,2]
[360073683,1746537055180,-18052.206065,0.00019986,2]
[360073684,1746537055194,-17690.7305531,0.00019986,2]
[360073685,1746537055203,-1000.0,0.00019987,2]
[360073686,1746537055214,-151.0,0.00019987,2]
[360073687,1746537055223,-151.0,0.00019987,2]
[360073688,1746537055233,-151.0,0.00019987,2]
[360073689,1746537055242,-151.0,0.00019987,2]
[360073690,1746537055253,-197.768425,0.00019987,2]
[360073691,1746537055263,-197.768425,0.00019987,2]
[360073692,1746537055272,-151.0,0.00019987,2]
[360073693,1746537055283,-151.0,0.00019987,2]
[360073694,1746537055293,-151.0,0.00019987,2]
[360073695,1746537055302,-151.0,0.00019987,2]
[360073696,1746537055311,-186.443593,0.00019987,2]
[360073697,1746537055321,-186.443593,0.00019987,2]
[360073698,1746537055330,-151.0,0.00019987,2]
[360073699,1746537055340,-271.780278,0.00019987,2]
[360073700,1746537055349,-271.780278,0.00019987,2]
[360073701,1746537055358,-571.98,0.00019988,2]
[360073702,1746537055368,-450.0,0.00019988,2]
[360073703,1746537055377,-450.0,0.00019988,2]
[360073704,1746537055386,-450.0,0.00019988,2]
[360073705,1746537055396,-450.0,0.00019988,2]
[360073706,1746537055405,-450.0,0.00019988,2]
[360073707,1746537055415,-153.988947,0.00019988,2]
[360073708,1746537055424,-151.0,0.00019988,2]
[360073709,1746537055433,-151.0,0.00019988,2]
[360073710,1746537055443,-151.0,0.00019988,2]
[360073711,1746537055452,-153.58199,0.00019988,2]
[360073712,1746537055461,-154.554191,0.00019988,2]
[360073713,1746537055471,-151.0,0.00019988,2]
[360073714,1746537055480,-151.0,0.00019988,2]
[360073715,1746537055489,-151.0,0.00019988,2]
[360073716,1746537055498,-151.0,0.00019988,2]
[360073717,1746537055508,-437.516566,0.00019988,2]
[360073718,1746537055519,-437.516566,0.00019988,2]
[360073719,1746537055528,-450.0,0.00019988,2]
[360073720,1746537055538,-450.0,0.00019988,2]
[360073721,1746537055547,-199.115359,0.00019988,2]
[360073722,1746537055556,-186.443593,0.00019988,2]
[360073723,1746537055565,-199.115359,0.00019988,2]
[360073724,1746537055574,-186.443593,0.00019988,2]
[360073725,1746537055584,-151.0,0.00019988,2]
[360073726,1746537055594,-500.0,0.00019988,2]
[360073727,1746537055603,-317.36,0.00019988,2]
[360073728,1746537055612,-450.0,0.00019988,2]
[360073729,1746537055621,-490.87,0.00019988,2]
[360073730,1746537055630,-490.87,0.00019988,2]
[360073731,1746537055640,-490.87,0.00019988,2]
[360073732,1746537055651,-490.87,0.00019988,2]
[360073733,1746537055660,-450.0,0.00019988,2]
[360073734,1746537055670,-450.0,0.00019988,2]
[360073735,1746537055679,-450.0,0.00019988,2]
[360073736,1746537055689,-450.0,0.00019988,2]
[360073737,1746537055698,-450.0,0.00019988,2]
[360073738,1746537055707,-271.780278,0.00019988,2]
[360073739,1746537055717,-271.780278,0.00019988,2]
[360073740,1746537055726,-450.0,0.00019988,2]
[360073741,1746537055736,-450.0,0.00019988,2]
[360073742,1746537055745,-450.0,0.00019988,2]
[360073743,1746537055755,-450.0,0.00019988,2]
[360073744,1746537055765,-450.0,0.00019988,2]
[360073745,1746537055774,-176.98,0.00019988,2]
[360073746,1746537055783,-450.0,0.00019988,2]
[360073747,1746537055792,-764.89,0.00019988,2]
[360073748,1746537055801,-764.89,0.00019988,2]
[360073749,1746537055810,-764.89,0.00019988,2]
[360073750,1746537055821,-764.89,0.00019988,2]
[360073751,1746537055831,-450.0,0.00019988,2]
[360073752,1746537055840,-450.0,0.00019988,2]
[360073753,1746537055850,-450.0,0.00019988,2]
[360073754,1746537055860,-506.3,0.00019988,2]
[360073755,1746537055870,-450.0,0.00019988,2]
[360073756,1746537055880,-450.0,0.00019988,2]
[360073757,1746537055890,-450.0,0.00019988,2]
[360073758,1746537055900,-572.32101459,0.00019988,2]
[360073759,1746537055911,-450.0,0.00019988,2]
[360073760,1746537055920,-540.07386646,0.00019988,2]
[360073761,1746537055930,-450.0,0.00019988,2]
[360073762,1746537055940,-450.0,0.00019988,2]
[360073763,1746537055950,-450.0,0.00019988,2]
[360073764,1746537055960,-492.3,0.00019988,2]
[360073765,1746537055969,-661.28,0.00019988,2]
[360073766,1746537055979,-450.0,0.00019988,2]
[360073767,1746537055989,-450.0,0.00019988,2]
[360073768,1746537055999,-450.0,0.00019988,2]
[360073769,1746537056009,-462.52,0.00019988,2]
[360073770,1746537056019,-450.0,0.00019988,2]
[360073771,1746537056028,-450.0,0.00019988,2]
[360073772,1746537056038,-7541.5,0.00019988,2]
[360073773,1746537056048,-450.0,0.00019988,2]
[360073774,1746537056058,-450.0,0.00019988,2]
[360073775,1746537056067,-450.0,0.00019988,2]
[360073776,1746537056077,-450.0,0.00019988,2]
[360073777,1746537056087,-489.49,0.00019988,2]
[360073778,1746537056096,-213.57,0.00019988,2]
[360073779,1746537056105,-947.09,0.00019988,2]
[360073780,1746537056115,-947.09,0.00019988,2]
[360073781,1746537056124,-947.09,0.00019988,2]
[360073782,1746537056133,-947.09,0.00019988,2]
[360073783,1746537056142,-151.0,0.00019988,2]
[360073784,1746537056151,-151.0,0.00019988,2]
[360073785,1746537056161,-1668.53,0.00019988,2]
[360073786,1746537056170,-450.0,0.00019988,2]
[360073787,1746537056179,-450.0,0.00019988,2]
[360073788,1746537056189,-450.0,0.00019988,2]
[360073789,1746537056199,-450.0,0.00019988,2]
[360073790,1746537056211,-450.0,0.00019988,2]
[360073791,1746537056221,-500.0,0.00019988,2]
[360073792,1746537056230,-450.0,0.00019988,2]
[360073793,1746537056239,-151.0,0.00019988,2]
[360073794,1746537056250,-151.0,0.00019988,2]
[360073795,1746537056260,-705.89,0.00019988,2]
[360073796,1746537056270,-705.89,0.00019988,2]
[360073797,1746537056279,-1608.56,0.00019988,2]
[360073798,1746537056290,-705.89,0.00019988,2]
[360073799,1746537056300,-705.89,0.00019988,2]
[360073800,1746537056310,-666162.35352851,0.00019989,2]
[360073801,1746537056320,-151.0,0.00019989,2]
[360073802,1746537056330,-151.0,0.00019989,2]
[360073803,1746537056339,-151.0,0.00019989,2]
[360073804,1746537056348,-151.0,0.00019989,2]
[360073805,1746537056358,-156.607851,0.00019989,2]
[360073806,1746537056366,-236.083165,0.00019989,2]
[360073807,1746537056376,-151.0,0.00019989,2]
[360073808,1746537056385,-151.0,0.00019989,2]
[360073809,1746537056394,-159.796325,0.00019989,2]
[360073810,1746537056404,-159.796325,0.00019989,2]
[360073811,1746537056413,-151.0,0.00019989,2]
[360073812,1746537056422,-151.0,0.00019989,2]
[360073813,1746537056431,-151.0,0.00019989,2]
[360073814,1746537056441,-151.0,0.00019989,2]
[360073815,1746537056451,-249.573929,0.00019989,2]
[360073816,1746537056461,-249.573929,0.00019989,2]
[360073817,1746537056470,-151.0,0.00019989,2]
[360073818,1746537056479,-151.0,0.00019989,2]
[360073819,1746537056489,-299.149261,0.00019989,2]
[360073820,1746537056603,-167.203536,0.00019989,2]
[360073821,1746537056614,-151.0,0.00019989,2]
[360073822,1746537056623,-151.0,0.00019989,2]
[360073823,1746537056634,-186.707806,0.00019989,2]
[360073824,1746537056644,-151.0,0.00019989,2]